Cogmind - Beta 16 @@@ ROGUE MODE // 2025.11.01 @ 16:00:21 Player: Crush Result: Destroyed by D-53 Grenadier with Mini Grenade Launcher Performance ------------- Evolutions (0) 0 Regions Visited (0) 0 Robots Destroyed (0) 0 Value Destroyed (0) 0 Prototype IDs (0) 0 Alien Tech Used (0) 0 Bonus (0) 0 TOTAL SCORE: 0 Bonus ------- None Cogmind --------- Core Integrity 0/250 Matter 298/300 Energy 100/100 System Corruption 0% Temperature Cool (0) Movement Core (100) Ox1 Location -11/Scrapyard Parts ------- > --- POWER (1) -------- (None) > --- PROPULSION (2) --- (None) > --- UTILITY (2) ------ Small Storage Unit > --- WEAPON (2) ------- (None) > --- INVENTORY (8) ---- Ion Engine Light Ion Engine Light Assault Rifle Peak State ------------ > --- POWER ------------ (None) > --- PROPULSION ------- Light Treads Light Treads > --- UTILITY ---------- Small Storage Unit > --- WEAPON ----------- Medium Laser Assault Rifle > --- INVENTORY -------- (None) [Rating: 5] Favorites ----------- Power None Propulsion Light Treads Treads Light Treads Utility Small Storage Unit Storage Small Storage Unit Weapon Medium Laser Energy Gun Medium Laser Ballistic Gun Assault Rifle Build | -11 ------- Run | Yrd Slots Evolved . | . Power . | . Propulsion . | . Utility . | . Weapon . | . Parts Attached 5 | 5 Power . | . Engine . | . Core . | . Reactor . | . Propulsion 2 | 2 Treads 2 | 2 Leg . | . Wheel . | . Hover . | . Flight . | . Utility 1 | 1 Device . | . Storage 1 | 1 Processor . | . Hackware . | . Protection . | . Artifact . | . Weapon 2 | 2 Energy Gun 1 | 1 Energy Cannon . | . Ballistic Gun 1 | 1 Ballistic Cannon . | . Launcher . | . Special Weapon . | . Impact Weapon . | . Slashing Weapon . | . Piercing Weapon . | . Special Melee Weapon . | . Unidentified Prototypes . | . Parts Lost 4 | 4 Power . | . Propulsion 2 | 2 Utility . | . Weapon 2 | 2 Highest Loss Streak 4 | 4 To Critical Strikes . | . Average Backups 2 | 2 Power 1 | 1 Propulsion . | . Utility . | . Weapon . | . Tool/Special . | . Unused Backups 3 | 3 Power 2 | 2 Propulsion . | . Utility . | . Weapon 1 | 1 Tool/Special . | . Average Slot Usage (%) . | . Peak Build Rating 5 | 5 Average Rating 4 | 4 On Entrance . | . Avg Prop Armor Cover (%) . | . Naked Turns . | . Heaviest Build 9 | 9 Greatest Support 40 | 40 Greatest Overweight (x) 2 | 2 Average Overweight (x) . | . Largest Inventory Capacity 8 | 8 Average Capacity 7 | 7 Most Carried 5 | 5 Average Carried 2 | 2 Final Capacity 8 | 8 Final Carried 3 | 3 Class Distribution -------------------- None Dominant Class ---------------- None Resources | -11 ----------- Run | Yrd Matter Collected 231 | 231 Remotely . | . Salvage Created . | . Parts . | . Haulers Intercepted . | . Recyclers Shooed . | . Parts Field Recycled . | . Retrieved Matter . | . Parts Self-Destructed . | . Prevented . | . Parts Restored . | . Kills | -11 ------- Run | Yrd Combat Hostiles Destroyed . | . Classes Destroyed . | . Best Kill Streak . | . Combat Bots Only . | . Max Kills in Single Turn . | . Gunslinging . | . Exploded . | . Melee . | . Uniques/NPCs Destroyed . | . Combat | -11 -------- Run | Yrd Hostile Shots Fired 27 | 27 Missed 3 | 3 Hits 24 | 24 Melee 3 | 3 Projectile 21 | 21 AOE 17 | 17 Damage Taken 803 | 803 Core 293 | 293 Absorbed by Shields . | . Core Remaining (%) . | . Volleys Fired 1 | 1 Largest 2 | 2 Hottest 70 | 70 Shots Fired 2 | 2 Gun 2 | 2 Cannon . | . Launcher . | . Special . | . Kinetic 1 | 1 Thermal 1 | 1 Explosive . | . Electromagnetic . | . Robot Hit Streak 2 | 2 Robot Miss Streak . | . Penetration Max . | . Secondary Targets . | . Shots Hit Robots 2 | 2 Core Hits . | . Critical Kills . | . Critical Parts Destroyed . | . Critical Strikes . | . Melee Attacks . | . Impact . | . Slashing . | . Piercing . | . Sneak Attacks . | . Combat Hostiles . | . Follow-up Attacks . | . Damage Inflicted 17 | 17 Guns 17 | 17 Cannons . | . Explosions . | . Melee . | . Ramming . | . Kinetic 5 | 5 Thermal 12 | 12 Explosive . | . Electromagnetic . | . Impact . | . Slashing . | . Piercing . | . Highest Corruption . | . Average Corruption . | . Corruption Purged . | . Corruption Blocked . | . Overload Shots . | . Overflow Damage . | . Projectiles . | . Explosions . | . Melee . | . Knockbacks . | . Impact . | . Kinetic . | . Secondary . | . Self-Inflicted Damage . | . Shots . | . Rammed . | . Targets Rammed . | . Kicked . | . Crushed . | . Highest Temperature . | . Average Temperature . | . Received Heat Transfer . | . Siege Activations . | . Martial Activations . | . Shielding Activations . | . Robots Disrupted . | . Combat Hostiles . | . Robots Corrupted . | . Combat Hostiles . | . Parts Fried . | . Impact Corruptions . | . Robots Melted . | . Combat Hostiles . | . Parts Melted . | . Heat Transferred 37 | 37 Parts Sabotaged . | . Parts Stolen . | . Parts Stripped . | . Power Chain Reactions . | . Alert | -11 ------- Run | Yrd Maximum Alert Level . | . Low Security (%) 100 | 100 Level 1 . | . Level 2 . | . Level 3 . | . Level 4 . | . Level 5 . | . High Security . | . Max Security . | . Peak Influence . | . Initial . | . Average . | . Influence Increases . | . Influence Decreases . | . Squads Dispatched . | . Investigation . | . Extermination . | . Reinforcement . | . Assault . | . Garrison . | . Intercept . | . Searches Triggered . | . Construction Impeded . | . Haulers Reinforced . | . Active Scanning Responses . | . Cargo Convoy Interrupts . | . Stealth | -11 --------- Run | Yrd Distress Signals . | . Communications Jammed . | . Distress Signals . | . Times Spotted 22 | 22 Peak Tracking Total 20 | 20 Tactical Retreats 1 | 1 Traps | -11 ------- Run | Yrd Traps Triggered . | . Indirectly . | . Trap Hack Attempts . | . Triggered . | . Disarmed . | . Reprogrammed . | . Reused . | . Traps Extracted . | . Installed . | . Triggered . | . Machines | -11 ---------- Run | Yrd Machines Disabled . | . Max in Single Turn . | . Machines Repaired . | . Machines Dismantled . | . Machines Sabotaged . | . Overloaded Fab Kills . | . Hacking | -11 --------- Run | Yrd Machines Accessed . | . Terminals . | . Fabricators . | . Repair Stations . | . Recycling Units . | . Scanalyzers . | . Garrison Access . | . Total Hacks . | . Successful . | . Failed . | . Catastrophic . | . Database Lockouts . | . Manual . | . Terminals . | . Fabricators . | . Repair Stations . | . Recycling Units . | . Scanalyzers . | . Garrison Access . | . Terminal Hacks . | . Fabricator Hacks . | . Repair Station Hacks . | . Recycling Unit Hacks . | . Scanalyzer . | . Garrison Access Hacks . | . Unauthorized Hacks . | . Terminals . | . Fabricators . | . Repair Stations . | . Recycling Units . | . Scanalyzers . | . Garrison Access . | . Data Cores Recovered . | . Used . | . Hacking Detections . | . Full Trace Events . | . Feedback Events . | . Feedback Blocked . | . Robot Schematics Acquired . | . Robots Built . | . Authchips . | . Time . | . Total Robot Build Rating . | . Part Schematics Acquired . | . Parts Built . | . Authchips . | . Time . | . Total Part Build Rating . | . Part Studies Acquired . | . Parts Repaired . | . Time . | . Parts Recycled . | . Recycled Matter . | . Retrieved Matter . | . Retrieved Components . | . Parts Scanalyzed . | . Part Schematics Acquired . | . Parts Damaged . | . Bothacking | -11 ------------ Run | Yrd Used RIF Installer . | . Robots Hacked . | . Non-combat . | . Combat . | . Robot Hacks Applied . | . Relay Couplers Released . | . Fabnet Peak Effective % . | . Robots Rewired . | . Allies Hacked . | . Hacks Repelled . | . Allies | -11 -------- Run | Yrd Total Allies . | . Largest Group . | . Highest-Rated Group . | . Highest-Rated Ally . | . Total Orders . | . Ally Attacks . | . Total Damage . | . Kills . | . Allies Corrupted . | . Allies Melted . | . Intel | -11 ------- Run | Yrd Active Infowar (turns) . | . Robot Analysis Total . | . Derelict Logs Recovered . | . Drone Launches . | . Drone Recoveries . | . Exploration | -11 ------------- Run | Yrd Turns Passed 1016 | 1016 Spaces Moved 116 | 116 Core 22 | 22 Treads 94 | 94 Legs . | . Wheels . | . Hover . | . Flight . | . Fastest Speed 50 | 50 Average Speed 144 | 144 Slowest Speed 160 | 160 Overloaded Moves . | . Propulsion Burnouts . | . Robots Hopped . | . Potential Cave-ins . | . Cave-ins Triggered . | . Exploration Rate (%) 13 | 13 Regions Visited . Branch Regions . Pre-discovered Areas . | . Known Exits Taken . | . Unknown Exits Taken . | . Scrap Searched . | . Spaces Dug . | . Terrain Destroyed . | . Melee . | . Projectile . | . AOE . | . Terrain Rammed . | . Walls Destroyed . | . Machines Disabled . | . Actions | -11 --------- Run | Yrd Total 962 | 962 Wait 832 | 832 Move 116 | 116 Hop . | . Pick Up 8 | 8 Fast Attach . | . Attach 5 | 5 Detach . | . Swap . | . Drop . | . Fire 1 | 1 Melee . | . Ram . | . Kick . | . Crush . | . Escape Stasis . | . Rewire . | . Trap . | . Miscellaneous . | . Route ------- -11/Scrapyard (discovered 1 exit: [*Mat]) History --------- Turn | Location | Event 8 | -11/Scrapyard | Discovered new exit (range 14) 967 | -11/Scrapyard | Assembled infested the area 1009 | -11/Scrapyard | Core integrity fell below 50% 1011 | -11/Scrapyard | Core integrity fell below 20% 1017 | -11/Scrapyard | Destroyed by D-53 Grenadier with Mini Grenade Launcher Last Messages --------------- 00990_ as-30971 destroyed. 00991_ as-01454 destroyed. 00991_ as-96092 destroyed. 00991_ as-79881 destroyed. 00991_ as-79611 destroyed. 00993_ as-23696 destroyed. 00993_ as-23520 destroyed. 00993_ R-06 Scavenger destroyed. 00993_ as-58217 destroyed. 00995_ as-10981 destroyed. 00995_ as-55919 destroyed. 00995_ as-00195 destroyed. 00995_ as-57214 destroyed. 00996_ as-68065 destroyed. 00999_ Lgt. Treads destroyed. 01000_ The unstable cave ceiling collapses. 01006_ Lgt. Treads destroyed. 01008_ Assault Rifle destroyed. 01010_ Med. Laser destroyed. 01011_ The unstable cave ceiling collapses. Map ----- +----------------------------------------------------+ | ?????????????# ???????##??????????????????????? | | ????????????? ????## #??????????????????????? | | ???????###### ????# ??????????????????????? | | ???????# ???# #??????????????????????? | | ???????# # #### ###????????????????????? | | ???????# # #######???????????????? | | ???????# # #???????????????? | | ???????# #???????????????? | | ???????# # % #???????????????? | | ???????######## ## #???????????????? | | ??????????????####### % # #???????????????? | | ????????????????????# # #???????????????? | | ????????????????##### ####???????????????? | | ????????????????# # #???????????????? | | ????????????????# d #???????????????? | | ????????????????# #???????????????? | | ????????????????# d #???????????????? | | ????????????????# #???????????????? | | ????????????????# ##???????????????? | | ????????????????##### ###????????????????? | | ????????????????# #??????????????????? | | ????????????????# ##??????????????????? | | ????????????????# #??????????????????? | | ????????????????# ##??????????????????? | | ????????????????# ###???????#???????????? | | ????????????????# @##???????? #???????????? | | ????????????????######## ####????? #???????????? | | ???????##########???# #???? ????????????? | | ???????# #???# #??? ??????????????? | | ???????# = =#???# ### ###### ?????????? | | ???????# ##### ????????? | | ???????# = ?????????? | | ???????# = ### #####???????????? | | ???????# ##### < #??? #??????????????? | | ???????# #???# #????#??????????????? | | ???????# #???##########???????????????????? | | ???????##########????????????????????????????????? | | ?????????????????????????????????????????????????? | | ?????????????????????????????????????????????????? | | ?????????????????????????????????????????????????? | | ?????????????????????????????????????????????????? | | ?????????????????????????????????????????????????? | | ?????????????????????????????????????????????????? | | ?????????????????????????????????????????????????? | | ?????????????????????????????????????????????????? | | ?????????????????????????????????????????????????? | | ?????????????????????????????????????????????????? | | ?????????????????????????????????????????????????? | | ?????????????????????????????????????????????????? | | ?????????????????????????????????????????????????? | +----------------------------------------------------+ Best States ------------- Heat Dissipation 25 Energy Generation 5 Energy Capacity 100 Matter Stores 293 Matter Capacity 300 Sight Range 16 Terrain Scan Density 10 Evasion (%) 50 Recoil Reduction 2 Item Schematics ----------------- None Robot Schematics ------------------ None Fabricated ------------ Nothing Repaired ---------- Nothing Studied --------- None Alien Tech Used ----------------- None Achievements -------------- Curiosity Killed The Cat Hunted Challenges ------------ None Game ------ Seed VisualSmartBeamcaster Manual? 0 Play Time 00:04:22 Cumulative 14.8 hours Start 2025.11.01 @ 15:56:14 End 2025.11.01 @ 16:00:21 Sessions 0 Manual Loads 0 Difficulty Rogue Special Mode None Game No. 34 Rogue 32 Adventurer 2 Explorer 0 Win Type - Total 0 Types 0/0/0/0/0/0/0/0/0/0 Lore% 9 Gallery% 16 Achievement% 14 Wizard Run 0 Options --------- Layout 0 ASCII 0 Keyboard 0 Movement Mouse Keybinds 0 Fullscreen 2 Font 24/Terminus Map View 76x50 Zoom Use 0% Tactical HUD 1 Map Filters NONE Filters NONE Steam 1 RUN: d56686d2-be57-4b9c-96af-2464bac43834